{"text_format":"1","workbook":"xlsx","n_sheets":2,"sheets":["Event Matrix","Example"],"not_rendered":{"charts":0,"images":0,"macros":0,"external_links":0,"defined_names":2,"comments":0,"pivot_tables":0},"unopened":[],"bounds":{"document_bytes":16777216,"sheet_cells":100000,"rows_first":2000,"rows_last":500,"rows_between":2000,"halvings":0,"cell_chars":16384,"cell_head_chars":4096},"cells_cut":0,"cells_raw":0,"read":"whole","date_system":"1900"}

{"sheet":"Event Matrix","index":0,"n_rows":26,"n_cols":32,"rows_kept":26,"cut":false,"hidden":false,"merged":[[2,7,2,11],[2,12,2,16],[2,17,2,20],[2,21,2,24],[2,26,2,31]]}
[]
[null,null,"Value/Time Sequence","Dimension Count","Importance","Estimate",null," "," "," "," "," "," "," "," "," "," "," "," "," "," "," "," ",null," ",null," "," "," "," "," "," "]
[null,"EVENT",null,null,null,null,null,"who",null,null,null,null,"what",null,null,null,null,"where",null,null,null,"why & how",null,null,null,null,"stakeholder group"]
[null,"Importance"]
[null,"Estimate",null,null,null,{"$f":"SUM(H5:Y5)","v":0}]
[null,null,1,{"$f":"COUNTA(H6:Y6)","v":0}]
[null,null,2,0]
[null,null,3,0]
[null,null,4,0]
[null,null,5,0]
[null,null,6,0]
[null,null,7,0]
[null,null,8,0]
[null,null,9,0]
[null,null,10,0]
[null,null,11,0]
[null,null,12,0]
[null,null,13,0]
[null,null,14,0]
[null,null,15,0]
[null,null,16,0]
[null,null,17,{"$f":"COUNTA(H22:Y22)","v":0}]
[null,null,18,{"$f":"COUNTA(H23:Y23)","v":0}]
[null,null,19,{"$f":"COUNTA(H24:Y24)","v":0}]
[null,null,20,{"$f":"COUNTA(H25:Y25)","v":0}]
[null,"Event Count",null,null,null,{"$f":"SUM(F5:F25)","v":0},null,{"$f":"COUNTA(H6:H25)","v":0},0,0,0,0,0,0,0,0,0,0,0,0,0,0,0,0,0,null,{"$f":"COUNTA(AA6:AA25)","v":0},0,0,0,0,0]

{"sheet":"Example","index":1,"n_rows":17,"n_cols":32,"rows_kept":17,"cut":false,"hidden":false,"merged":[[2,21,2,24],[2,17,2,20],[2,12,2,16],[2,7,2,11],[2,26,2,31]]}
[]
[null,null,"Sequence","Dimensions","Importance","Estimate",null,"EMPLOYEE","SUPPLIER ","RESELLER","CARRIER",null,"COMPONENT","PRODUCT","PROCESS","TEST",null,"PLANT","WAREHOUSE","STORE",null,"CONTRACT","SHIP MODE","PO"," ",null,"Sales","Marketing","Finance","Product Development","Manufacturing","Logistics"]
[null,"EVENT",null,null,null,null,null,"who",null,null,null,null,"what",null,null,null,null,"where",null,null,null,"why & how",null,null,null,null,"stakeholder group"]
[null,"Importance",null,null,null,null,null,null,null,null,null,null,90,100]
[null,"Estimate",null,null,null,{"$f":"SUM(H5:Y5)","v":50},null,{"$f":"SUM(M5:N5)","v":25},null,null,null,null,10,15]
[null,"PURCHASE ORDERS \nEmployee purchases Component",30,{"$f":"COUNTA(H6:Y6)","v":6},null,null,null,"✓","✱",null,null,null,"✱",null,null,null,null,"✓",null,null,null,"✓",null,"✱",null,null,null,null,"✓",null,"✓"]
[null,"COMPONENT DELIVERIES\nSupplier delivered Component",30.1,6,null,null,null,null,"✓",null,"✱",null,"✓",null,null,null,null,"✓",null,null,null,null,"✱","✓",null,null,null,null,"✓",null,"✓"]
[null,"SUPPLIER PAYMENTS\nEmployee pays Supplier",30.2,4,null,null,null,"✓","✓",null,null,null,"✓",null,null,null,null,null,null,null,null,null,null,"✓",null,null,null,null,"✓"]
[null,"COMPONENT INVENTORY LEVELS\nPlant stocks Component",40,2,null,null,null,null,null,null,null,null,"✓",null,null,null,null,"✓",null,null,null,null,null,null,null,null,null,null,"✓",null,"✓"]
[null,"BILL OF MATERIALS\nProduct made from Component",20,{"$f":"COUNTA(H10:Y10)","v":2},100,30,null,null,null,null,null,null,"✱","✱",null,null,null,null,null,null,null,null,null,null,null,null,null,null,null,"✓","✓"]
[null,"MANUFACTURING PROCESSES\nPlant runs Process",60,5,null,null,null,"✓",null,null,null,null,"✓","✓","✱",null,null,"✓",null,null,null,null,null,null,null,null,null,null,null,"✓","✓"]
[null,"PRODUCT INVENTORY LEVELS\nWarehouse stocks Products",70,2,null,null,null,null,null,null,null,null,null,"✓",null,null,null,null,"✓",null,null,null,null,null,null,null,"✓","✓","✓",null,"✓","✓"]
[null,"WAREHOUSE SHIPMENTS\nCarrier ships Product",80,{"$f":"COUNTA(H13:Y13)","v":7},null,null,null,null,null,"✓","✱",null,null,"✓",null,null,null,null,"✓","✓",null,"✓","✱",null,null,null,null,null,null,null,"✓","✓"]
[null,"RESELLER INVENTORY\nReseller stocks Product",null,null,null,null,null,null,null,null,null,null,null,null,null,null,null,null,null,null,null,null,null,null,null,null,"✓","✓"]
[null,"RESELLER SALES\nReseller sells Product",null,null,null,null,null,null,null,null,null,null,null,null,null,null,null,null,null,null,null,null,null,null,null,null,"✓","✓","✓"]
[null,"MANUFACTURING PLANS\nPlant builds Product",10,{"$f":"COUNTA(H16:Y16)","v":2},null,null,null,null,null,null,null,null,null,"✓",null,null,null,"✓",null,null,null,null,null,null,null,null,"✓","✓","✓","✓","✓","✓"]
[null,"Fact usage count",null,null,null,{"$f":"SUM(F5:F16)","v":80},null,{"$f":"COUNTA(H6:H16)","v":3},3,1,2,0,6,5,1,0,0,5,2,1,0,2,2,3,0,null,{"$f":"COUNTA(AA6:AA16)","v":4},4,7,3,8,3]